Cogmind - Beta 15 @@@ ROGUE MODE // 2025.06.17 @ 11:27:46 // AFD2020/Player2 Player: Storm Mk9 Result: Destroyed by 5F-YYL(R) with Subdweller Laser Performance ------------- Evolutions (0) 0 Regions Visited (3) 600 Robots Destroyed (17) 85 Value Destroyed (318) 318 Prototype IDs (0) 0 Alien Tech Used (0) 0 Bonus (151) 151 TOTAL SCORE: 1154 Bonus ------- Follower Combat Kills 208 Friendly Fire -57 Cogmind --------- Core Integrity 0/250 Matter 227/300 Energy 100/100 System Corruption 0% Temperature Cool (6) Movement Core (300) Ox5 Location -10/Subcaves Parts ------- > --- POWER (1) -------- (None) > --- PROPULSION (2) --- (None) > --- UTILITY (2) ------ Small Storage Unit Makeshift Kinetic Plating > --- WEAPON (2) ------- Heavy Assault Rifle Barrage Gun > --- INVENTORY (8) ---- Huge Storage Unit Seismic Detector Grenade Launcher Makeshift Hammer Heavy Explosive Trap Heavy Explosive Trap Heavy Explosive Trap Heavy Explosive Trap Peak State ------------ > --- POWER ------------ (None) > --- PROPULSION ------- (None) > --- UTILITY ---------- Small Storage Unit Makeshift Kinetic Plating > --- WEAPON ----------- Heavy Assault Rifle Barrage Gun > --- INVENTORY -------- Huge Storage Unit Seismic Detector Grenade Launcher Makeshift Hammer Heavy Explosive Trap Heavy Explosive Trap Heavy Explosive Trap Heavy Explosive Trap [Rating: 11] Favorites ----------- Power Ion Engine Engine Ion Engine Propulsion Light Treads Treads Light Treads Utility Small Storage Unit Device Seismic Detector Storage Small Storage Unit Protection Makeshift Kinetic Plating Weapon Light Assault Rifle Energy Gun Small Laser Ballistic Gun Light Assault Rifle Build | -11 -10 -10 -10 ------- Run | Yrd Mat Min Sub Slots Evolved . | . . . . Power . | . . . . Propulsion . | . . . . Utility . | . . . . Weapon . | . . . . Parts Attached 15 | 6 2 . 7 Power 4 | . 2 . 2 Engine 4 | . 2 . 2 Core . | . . . . Reactor . | . . . . Propulsion 2 | 2 . . . Treads 2 | 2 . . . Leg . | . . . . Wheel . | . . . . Hover . | . . . . Flight . | . . . . Utility 3 | 2 . . 1 Device 1 | 1 . . . Storage 1 | 1 . . . Processor . | . . . . Hackware . | . . . . Protection 1 | . . . 1 Artifact . | . . . . Weapon 6 | 2 . . 4 Energy Gun 2 | 1 . . 1 Energy Cannon . | . . . . Ballistic Gun 4 | 1 . . 3 Ballistic Cannon . | . . . . Launcher . | . . . . Special Weapon . | . . . . Impact Weapon . | . . . . Slashing Weapon . | . . . . Piercing Weapon . | . . . . Special Melee Weapon . | . . . . Unidentified Prototypes . | . . . . Parts Lost 5 | . . 1 4 Power 2 | . . . 2 Propulsion 2 | . . . 2 Utility . | . . . . Weapon 1 | . . 1 . Highest Loss Streak 1 | . . 1 1 To Critical Strikes . | . . . . Average Backups 4 | 6 4 4 3 Power . | 2 1 . . Propulsion . | 2 1 1 . Utility 1 | . . 1 1 Weapon 1 | 1 1 2 2 Tool/Special . | . . . . Unused Backups 12 | . 4 . 8 Power 2 | . 1 . 1 Propulsion 4 | . 2 . 2 Utility 1 | . . . 1 Weapon 5 | . 1 . 4 Tool/Special . | . . . . Average Slot Usage (%) 94 | . 97 98 90 Engine 13 | . 13 14 13 Treads 23 | . 26 28 21 Device 13 | . 14 14 13 Storage 14 | . 14 14 14 Energy Gun 9 | . 13 12 6 Ballistic Gun 17 | . 14 14 20 Peak Build Rating 11 | 6 7 7 11 Average Rating 7 | 4 6 6 8 On Entrance 4 | . 6 7 6 Naked Turns . | . . . . Heaviest Build 18 | 8 13 11 18 Greatest Support 40 | 40 40 40 40 Greatest Overweight (x) 5 | . . . 5 Average Overweight (x) . | . . . . Largest Inventory Capacity 8 | 8 8 8 8 Average Capacity 7 | 7 8 8 8 Most Carried 8 | 8 7 8 8 Average Carried 6 | 6 4 6 7 Final Capacity 8 | 8 8 8 8 Final Carried 8 | 8 4 8 8 Class Distribution -------------------- 100% | Mutant Dominant Class ---------------- Mutant | -10/Materials Mutant | -10/Mines Mutant | -10/Subcaves Resources | -11 -10 -10 -10 ----------- Run | Yrd Mat Min Sub Matter Collected 452 | 276 24 52 100 Remotely . | . . . . Salvage Created 483 | 203 117 40 123 Parts 37 | 17 7 3 10 Haulers Intercepted . | . . . . Recyclers Shooed . | . . . . Parts Field Recycled . | . . . . Retrieved Matter . | . . . . Parts Self-Destructed 8 | . . . 8 Prevented . | . . . . Kills | -11 -10 -10 -10 ------- Run | Yrd Mat Min Sub Combat Hostiles Destroyed 8 | . 2 1 5 Guns 8 | . 2 1 5 Classes Destroyed 6 | 2 2 . 2 Tunneler 6 | 6 . . . Recycler 1 | 1 . . . Operator 2 | . 2 . . Swarmer 3 | . . . 3 Grunt 3 | . 2 1 . Subdweller 2 | . . . 2 Best Kill Streak 5 | 3 2 1 5 Combat Bots Only 5 | . 2 1 5 Max Kills in Single Turn 2 | 1 1 1 2 Gunslinging 1 | . . . 1 Exploded . | . . . . Melee . | . . . . Uniques/NPCs Destroyed . | . . . . Combat | -11 -10 -10 -10 -------- Run | Yrd Mat Min Sub Hostile Shots Fired 77 | . 18 17 42 Missed 26 | . 6 6 14 Hits 51 | . 12 11 28 Projectile 51 | . 12 11 28 Critical Strikes 3 | . 1 2 . Damage Taken 822 | . 168 167 487 Core 196 | . 44 29 123 Absorbed by Shields . | . . . . Core Remaining (%) 100 | 100 . . . Volleys Fired 75 | 16 17 12 30 Largest 2 | 2 2 2 2 Hottest 60 | 60 60 60 60 Shots Fired 135 | 32 34 20 49 Gun 135 | 32 34 20 49 Cannon . | . . . . Launcher . | . . . . Special . | . . . . Kinetic 90 | 16 17 12 45 Thermal 45 | 16 17 8 4 Explosive . | . . . . Electromagnetic . | . . . . Robot Hit Streak 13 | 6 4 5 13 Robot Miss Streak 3 | 2 2 1 3 Penetration Max . | . . . . Secondary Targets 1 | . . . 1 Max Gunslinging Chain 1 | . . . 1 Shots Hit Robots 86 | 19 19 15 33 Core Hits 34 | 10 9 7 8 Critical Kills . | . . . . Critical Parts Destroyed . | . . . . Critical Strikes . | . . . . Melee Attacks . | . . . . Impact . | . . . . Slashing . | . . . . Piercing . | . . . . Sneak Attacks . | . . . . Combat Hostiles . | . . . . Follow-up Attacks . | . . . . Damage Inflicted 931 | 191 190 131 419 Guns 931 | 191 190 131 419 Cannons . | . . . . Explosions . | . . . . Melee . | . . . . Ramming . | . . . . Kinetic 612 | 59 66 78 409 Thermal 319 | 132 124 53 10 Explosive . | . . . . Electromagnetic . | . . . . Impact . | . . . . Slashing . | . . . . Piercing . | . . . . Highest Corruption . | . . . . Average Corruption . | . . . . Corruption Purged . | . . . . Corruption Blocked . | . . . . Overload Shots . | . . . . Overflow Damage . | . . . . Projectiles . | . . . . Explosions . | . . . . Melee . | . . . . Knockbacks . | . . . . Impact . | . . . . Kinetic . | . . . . Secondary . | . . . . Self-Inflicted Damage . | . . . . Shots . | . . . . Rammed . | . . . . Targets Rammed . | . . . . Kicked . | . . . . Crushed . | . . . . Highest Temperature 171 | 20 171 118 . Average Temperature 56 | 8 88 49 . Received Heat Transfer 276 | . 111 129 36 Siege Activations . | . . . . Martial Activations . | . . . . Shielding Activations . | . . . . Robots Disrupted . | . . . . Combat Hostiles . | . . . . Robots Corrupted . | . . . . Combat Hostiles . | . . . . Parts Fried . | . . . . Impact Corruptions . | . . . . Robots Melted . | . . . . Combat Hostiles . | . . . . Parts Melted 1 | . 1 . . Heat Transferred 725 | 300 275 125 25 Parts Sabotaged . | . . . . Parts Stolen . | . . . . Parts Stripped . | . . . . Power Chain Reactions . | . . . . Alert | -11 -10 -10 -10 ------- Run | Yrd Mat Min Sub Maximum Alert Level . | . . . . Low Security (%) 100 | 100 100 100 . Level 1 . | . . . . Level 2 . | . . . . Level 3 . | . . . . Level 4 . | . . . . Level 5 . | . . . . High Security . | . . . . Max Security . | . . . . Peak Influence 54 | 10 52 54 . Initial . | . . . . Average 6 | 1 8 8 . Influence Increases 345 | 35 74 124 112 Destroy 0b10 Robot/C 200 | . 40 80 80 Destroy 0b10 Robot/NC 45 | 35 10 . . Destroy Leader 40 | . 10 20 10 Allied During Kill 60 | . 14 24 22 Influence Decreases 322 | 35 74 78 135 Entered New Map 25 | . . . 25 Time Decay 257 | 35 74 78 70 Lost Part 40 | . . . 40 Squads Dispatched 1 | . 1 . . Investigation 1 | . 1 . . Extermination . | . . . . Reinforcement . | . . . . Assault . | . . . . Garrison . | . . . . Intercept . | . . . . Searches Triggered . | . . . . Construction Impeded . | . . . . Haulers Reinforced . | . . . . Active Scanning Responses . | . . . . Cargo Convoy Interrupts . | . . . . Stealth | -11 -10 -10 -10 --------- Run | Yrd Mat Min Sub Distress Signals . | . . . . Communications Jammed . | . . . . Distress Signals . | . . . . Times Spotted 21 | . 5 4 12 Peak Tracking Total 3 | . 2 2 3 Tactical Retreats . | . . . . Traps | -11 -10 -10 -10 ------- Run | Yrd Mat Min Sub Traps Triggered 3 | . 2 . 1 Indirectly . | . . . . Trap Hack Attempts . | . . . . Triggered . | . . . . Disarmed . | . . . . Reprogrammed . | . . . . Reused . | . . . . Traps Extracted . | . . . . Installed . | . . . . Triggered . | . . . . Most Traps Carried 4 | . . 4 4 Machines | -11 -10 -10 -10 ---------- Run | Yrd Mat Min Sub Machines Disabled . | . . . . Max in Single Turn . | . . . . Machines Repaired . | . . . . Machines Dismantled . | . . . . Machines Sabotaged . | . . . . Overloaded Fab Kills . | . . . . Hacking | -11 -10 -10 -10 --------- Run | Yrd Mat Min Sub Machines Accessed 3 | . 3 . . Terminals 3 | . 3 . . Fabricators . | . . . . Repair Stations . | . . . . Recycling Units . | . . . . Scanalyzers . | . . . . Garrison Access . | . . . . Total Hacks 9 | . 9 . . Successful 1 | . 1 . . Failed 7 | . 7 . . Catastrophic . | . . . . Database Lockouts 1 | . 1 . . Manual 9 | . 9 . . Terminals 9 | . 9 . . Fabricators . | . . . . Repair Stations . | . . . . Recycling Units . | . . . . Scanalyzers . | . . . . Garrison Access . | . . . . Terminal Hacks 1 | . 1 . . Robot Analysis 1 | . 1 . . Fabricator Hacks . | . . . . Repair Station Hacks . | . . . . Recycling Unit Hacks . | . . . . Scanalyzer . | . . . . Garrison Access Hacks . | . . . . Unauthorized Hacks . | . . . . Terminals . | . . . . Fabricators . | . . . . Repair Stations . | . . . . Recycling Units . | . . . . Scanalyzers . | . . . . Garrison Access . | . . . . Data Cores Recovered 2 | . 2 . . Used 1 | . 1 . . Hacking Detections 3 | . 3 . . Full Trace Events 2 | . 2 . . Feedback Events . | . . . . Feedback Blocked . | . . . . Robot Schematics Acquired . | . . . . Robots Built . | . . . . Authchips . | . . . . Time . | . . . . Total Robot Build Rating . | . . . . Part Schematics Acquired . | . . . . Parts Built . | . . . . Authchips . | . . . . Time . | . . . . Total Part Build Rating . | . . . . Parts Repaired . | . . . . Time . | . . . . Parts Recycled . | . . . . Recycled Matter . | . . . . Retrieved Matter . | . . . . Retrieved Components . | . . . . Parts Scanalyzed . | . . . . Part Schematics Acquired . | . . . . Parts Damaged . | . . . . Bothacking | -11 -10 -10 -10 ------------ Run | Yrd Mat Min Sub Used RIF Installer . | . . . . Robots Hacked . | . . . . Non-combat . | . . . . Combat . | . . . . Robot Hacks Applied . | . . . . Relay Couplers Released . | . . . . Fabnet Peak Effective % . | . . . . Robots Rewired . | . . . . Allies Hacked . | . . . . Hacks Repelled . | . . . . Allies | -11 -10 -10 -10 -------- Run | Yrd Mat Min Sub Total Allies 1 | . 1 . . Largest Group 1 | . 1 1 1 Highest-Rated Group 61 | . 55 56 61 Highest-Rated Ally 61 | . 55 56 61 Total Orders . | . . . . Ally Attacks 39 | . 2 13 24 Total Damage 491 | . 10 136 345 Kills 7 | . . 3 4 Allies Corrupted . | . . . . Allies Melted . | . . . . Intel | -11 -10 -10 -10 ------- Run | Yrd Mat Min Sub Active Infowar (turns) 2388 | 35 385 650 1318 Seismic 2388 | 35 385 650 1318 Robot Analysis Total 1 | . 1 . . Derelict Logs Recovered 1 | . . 1 . Drone Launches . | . . . . Drone Recoveries . | . . . . Exploration | -11 -10 -10 -10 ------------- Run | Yrd Mat Min Sub Turns Passed 2764 | 333 385 650 1396 Spaces Moved 1450 | 168 149 366 767 Core 32 | 3 . . 29 Treads 1418 | 165 149 366 738 Legs . | . . . . Wheels . | . . . . Hover . | . . . . Flight . | . . . . Fastest Speed 50 | 50 160 160 160 Average Speed 162 | 158 160 160 165 Slowest Speed 300 | 160 160 160 300 Overloaded Moves . | . . . . Propulsion Burnouts . | . . . . Robots Hopped . | . . . . Potential Cave-ins . | . . . . Cave-ins Triggered . | . . . . Exploration Rate (%) 45 | 7 26 83 65 Regions Visited 3 Branch Regions 2 Pre-discovered Areas 2 | . . 1 1 Known Exits Taken . | . . . . Unknown Exits Taken 3 | 1 1 1 . Scrap Searched 4 | . . 1 3 Spaces Dug . | . . . . Terrain Destroyed . | . . . . Melee . | . . . . Projectile . | . . . . AOE . | . . . . Terrain Rammed . | . . . . Walls Destroyed . | . . . . Machines Disabled . | . . . . Actions | -11 -10 -10 -10 --------- Run | Yrd Mat Min Sub Total 1736 | 206 267 413 850 Wait 162 | 4 88 32 38 Move 1447 | 167 148 365 767 Hop . | . . . . Pick Up 24 | 13 5 4 2 Fast Attach 6 | 1 . . 5 Attach 10 | 5 5 . . Detach . | . . . . Swap 2 | . . . 2 Drop 10 | . 4 . 6 Fire 75 | 16 17 12 30 Melee . | . . . . Ram . | . . . . Kick . | . . . . Crush . | . . . . Escape Stasis . | . . . . Rewire . | . . . . Trap . | . . . . Miscellaneous . | . . . . Route ------- -11/Scrapyard -10/Materials -10/Mines (discovered 2 exits: [*Mat] / [*Sub]) -10/Subcaves History --------- Turn | Location | Event 4 | -11/Scrapyard | Discovered new exit (range 16) 334 | -11/Scrapyard | Entered Materials 358 | -10/Materials | Build established: Mutant 642 | -10/Materials | Discovered new exit (range 13) 660 | -10/Materials | Central database locked down 719 | -10/Materials | Entered Mines 972 | -10/Mines | Found a hidden stash of uninstalled traps 1205 | -10/Mines | Discovered new exit (range 5) 1359 | -10/Mines | Discovered new exit (range 6) 1369 | -10/Mines | Entered Subcaves 1418 | -10/Subcaves | Learned location of Zion (-7) 1418 | -10/Subcaves | Met a Zionite searching for "candidates" 1652 | -10/Subcaves | A swath of the cavern ceiling suddenly collapsed 1720 | -10/Subcaves | Shifting Twisted Machinery released Flamer 1725 | -10/Subcaves | Shifting Twisted Machinery released Sub. Monowheel 2117 | -10/Subcaves | Shifting Twisted Machinery released Battle Rifle 2570 | -10/Subcaves | A swath of the cavern ceiling suddenly collapsed 2570 | -10/Subcaves | Core integrity fell below 50% 2660 | -10/Subcaves | Core integrity fell below 20% 2765 | -10/Subcaves | Destroyed by 5F-YYL(R) with Subdweller Laser Last Messages --------------- 02688_ RH-BMT(R) destroyed. 02693_ Player 2 drops Sub. Power Source. Player 2: "Take this Sub. Power Source." 02694_ Player 2 attaches Sub. Optics. 02701_ Player 2 removes Sub. Power Source. 02701_ Player 2 attaches Sub. Power Source. 02710_ Acquired 35 matter. 02713_ Player 2 drops Sub. Power Source. 02715_ Player 2 acquires Sub. Power Source. Player 2: "I could really use a propulsion unit." 02716_ Acquired 7 matter. 02720_ Player 2 removes Sml. Laser. 02720_ Player 2 attaches Sub. Beam Cannon. Player 2: "I'm going to feel like a total badass toting this thing around." 02726_ Subatomizers dissect the Sub. Power Source. 02752_ Player 2 drops Sub. Power Source. Player 2: "Cover up that core!" Map ----- +----------------------------------------------------+ | ### ##???????##???????????????? | | ######## ##????? #??????????????? | | ##??#### %%"##??? ???????????????? | | ##??## ##? #??????????????? | | ##??## " ## #??????????????? | | ????# "" #??????????????? | | ???# ### "% " #???????????????? | | ???#####??## % " " " " #???????????????? | | ???????????## & & " #???????????????? | | ????????????##&%*!% " #???????????????? | | ?????????????# #""### ##???????????????? | | ?????????????##**#####????#????????????????? | | ??????????????#& ######""##???????????????? | | ??????????????# "# ""#???????????????? | | ???????# ????## "" "#???????????????? | | ????????# "## " ## #??????????????? | | ????????# "" " ##??? ##??????????????? | | ????????##"" "" ##??????##???????????????? | | ?????????## " ##????###????????????????? | | ??????????# ###### #????????????????? | | ??????????# * ##???????????????? | | ?????????# ## #???????????????? | | ?????????#####?# ## #???????????????? | | ??????????????# ###### @##???????????????? | | ??????????????## #????# #????????????????? | | ???????????????# ????##@#????????????????? | | ???????????????## ?????# #???????????????? | | ????????????????## ?????# #???????????????? | | ??????????????????#?????# #???????????????? | | ????????????????????????## #???????????????? | | ??????????????????????????R#???????????????? | | ??????????????????????????##???????????????? | | ???????????????????????????????????????????? | | ???????????????????????????????????????????? | | ???????????????????????????????????????????? | | ???????????????????????????????????????????? | | ???????????????????????????????????????????? | | ???????????????????????????????????????????? | | ???????????????????????????????????????????? | | ???????????????????????????????????????????? | | ???????????????????????????????????????????? | | ???????????????????????????????????????????? | | ???????????????????????????????????????????? | | ???????????????????????????????????????????? | | ???????????????????????????????????????????? | | ???????????????????????????????????????????? | | ???????????????????????????????????????????? | | ???????????????????????????????????????????? | | ???????????????????????????????????????????? | | ???????????????????????????????????????????? | +----------------------------------------------------+ Best States ------------- Heat Dissipation 25 Energy Generation 15 Energy Capacity 250 Matter Stores 300 Matter Capacity 300 Sight Range 16 Terrain Scan Density 10 Armor Coverage 100 Resistance: KI 10 Evasion (%) 40 Recoil Reduction 2 Item Schematics ----------------- None Robot Schematics ------------------ None Fabricated ------------ Nothing Repaired ---------- Nothing Alien Tech Used ----------------- None Achievements -------------- None Challenges ------------ None Player 2 | -11 -10 -10 -10 ---------- Run | Yrd Mat Min Sub Slots Evolved . | . . . . Power . | . . . . Propulsion . | . . . . Utility . | . . . . Weapon . | . . . . Parts Attached 18 | . 6 1 11 Parts Lost 5 | . . . 5 Damage Taken 654 | . . 89 565 Core 68 | . . . 68 Player 2/Cogmind (%) 25 | . . . 35 Absorbed by Shields . | . . . . Damage Inflicted 491 | . 10 136 345 Player 2/Cogmind (%) 34 | . 5 50 45 Combat Hostiles Destroyed 7 | . . 3 4 Player 2/Cogmind (%) 46 | . . 75 44 Game ------ Seed AutogunNuclearKit Manual? 0 Play Time 00:15:46 Cumulative 62.7 hours Start 2025.06.17 @ 11:12:04 End 2025.06.17 @ 11:27:46 Sessions 1 Manual Loads 0 Difficulty Rogue Special Mode AFD2020/Player2 Game No. 52 Rogue 33 Adventurer 0 Explorer 19 Win Type - Total 0 Types 0/0/0/0/0/0/0/0/0/0 Lore% 52 Gallery% 42 Achievement% 67 Wizard Run 0 Options --------- Layout 1 ASCII 0 Keyboard 0 Movement Mouse Keybinds 0 Fullscreen 2 Font 16/SmallcapsGlow Map View 50x40 Zoom Use 0% Tactical HUD 1 Map Filters NONE Filters NONE Steam SD RUN: 736de4d8-e177-428d-b77b-2350459c1653